lending/lending_fUSD_20250121
["ID","MTS","AMOUNT","RATE_DAILY","PERIOD"]
[349889424,1737479453242,-500.0,0.00020273,2]
[349889425,1737479453251,-500.0,0.00020273,2]
[349889426,1737479453260,-500.0,0.00020273,2]
[349889427,1737479453269,-500.0,0.00020273,2]
[349889428,1737479453279,-500.0,0.00020273,2]
[349889429,1737479453287,-500.0,0.00020273,2]
[349889430,1737479453296,-509.32,0.00020273,2]
[349889431,1737479453305,-515.62,0.00020273,2]
[349889432,1737479453313,-500.0,0.00020273,2]
[349889433,1737479453459,-500.0,0.00020273,2]
[349889434,1737479453469,-500.0,0.00020273,2]
[349889435,1737479453479,-599.41,0.00020273,2]
[349889436,1737479453488,-500.0,0.00020273,2]
[349889437,1737479453497,-500.0,0.00020273,2]
[349889438,1737479453506,-500.0,0.00020273,2]
[349889439,1737479453515,-500.0,0.00020273,2]
[349889440,1737479453523,-500.0,0.00020273,2]
[349889441,1737479453532,-500.0,0.00020273,2]
[349889442,1737479453541,-500.0,0.00020273,2]
[349889443,1737479453550,-500.0,0.00020273,2]
[349889444,1737479453559,-500.0,0.00020273,2]
[349889445,1737479453569,-500.0,0.00020273,2]
[349889446,1737479453578,-500.0,0.00020273,2]
[349889447,1737479453587,-500.0,0.00020273,2]
[349889448,1737479453597,-810.5,0.00020273,2]
[349889449,1737479453606,-500.0,0.00020273,2]
[349889450,1737479453615,-4560.48,0.00020273,2]
[349889451,1737479453625,-500.0,0.00020273,2]
[349889452,1737479453634,-2352.03,0.00020273,2]
[349889453,1737479453644,-500.0,0.00020273,2]
[349889454,1737479453654,-500.0,0.00020273,2]
[349889455,1737479453663,-500.0,0.00020273,2]
[349889456,1737479453675,-701.77,0.00020273,2]
[349889457,1737479453684,-500.0,0.00020273,2]
[349889458,1737479453693,-698.650359,0.00020273,2]
[349889459,1737479453702,-500.0,0.00020273,2]
[349889460,1737479453711,-1124.94,0.00020273,2]
[349889461,1737479453721,-500.0,0.00020273,2]
[349889462,1737479453731,-531.34,0.00020273,2]
[349889463,1737479453740,-749.14,0.00020273,2]
[349889464,1737479453750,-500.0,0.00020273,2]
[349889465,1737479453760,-1003.53,0.00020273,2]
[349889466,1737479453769,-563.702205,0.00020273,2]
[349889467,1737479453778,-629.26,0.00020273,2]
[349889468,1737479453787,-590.33,0.00020273,2]
[349889469,1737479453798,-500.0,0.00020273,2]
[349889470,1737479453807,-718.45,0.00020273,2]
[349889471,1737479453817,-1881.9,0.00020273,2]
[349889472,1737479453826,-754.04,0.00020273,2]
[349889473,1737479453836,-777.47,0.00020273,2]
[349889474,1737479453845,-739.46,0.00020273,2]
[349889475,1737479453854,-500.0,0.00020273,2]
[349889476,1737479453864,-925.58,0.00020273,2]
[349889477,1737479453873,-1142.64,0.00020273,2]
[349889478,1737479453882,-2002.12,0.00020273,2]
[349889479,1737479453891,-709.95,0.00020273,2]
[349889480,1737479453900,-941.04,0.00020273,2]
[349889481,1737479453911,-2517.4,0.00020273,2]
[349889482,1737479453921,-1413.99,0.00020273,2]
[349889483,1737479453932,-552.17,0.00020273,2]
[349889484,1737479453942,-500.0,0.00020273,2]
[349889485,1737479453951,-737.99,0.00020273,2]
[349889486,1737479453963,-3214.68,0.00020273,2]
[349889487,1737479453974,-500.0,0.00020273,2]
[349889488,1737479453984,-1146.7,0.00020273,2]
[349889489,1737479453993,-626.45,0.00020273,2]
[349889490,1737479454002,-1079.87,0.00020273,2]
[349889491,1737479454011,-2035.94,0.00020273,2]
[349889492,1737479454021,-657.06,0.00020273,2]
[349889493,1737479454030,-808.85,0.00020273,2]
[349889494,1737479454039,-916.07,0.00020273,2]
[349889495,1737479454048,-721.27,0.00020273,2]
[349889496,1737479454058,-1430.53,0.00020273,2]
[349889497,1737479454067,-1786.33,0.00020273,2]
[349889498,1737479454076,-637.70518561,0.00020273,2]
[349889499,1737479454086,-631.29,0.00020273,2]
[349889500,1737479454095,-2195.22,0.00020273,2]
[349889501,1737479454104,-1106.1,0.00020273,2]
[349889502,1737479454113,-3164.59,0.00020273,2]
[349889503,1737479454123,-500.0,0.00020273,2]
[349889504,1737479454138,-2877.9,0.00020273,2]
[349889505,1737479454148,-574.34,0.00020273,2]
[349889506,1737479454157,-1257.13,0.00020273,2]
[349889507,1737479454166,-2008.47,0.00020273,2]
[349889508,1737479454175,-1016.06,0.00020273,2]
[349889509,1737479454184,-2998.19,0.00020273,2]
[349889510,1737479454194,-1129.37,0.00020273,2]
[349889511,1737479454203,-1537.18,0.00020273,2]
[349889512,1737479454212,-794.84,0.00020273,2]
[349889513,1737479454223,-1711.15,0.00020273,2]
[349889514,1737479454234,-1550.42,0.00020273,2]
[349889515,1737479454244,-1036.46,0.00020273,2]
[349889516,1737479454254,-573.63,0.00020273,2]
[349889517,1737479454266,-500.0,0.00020273,2]
[349889518,1737479454276,-1712.5,0.00020273,2]
[349889519,1737479454286,-1076.93,0.00020273,2]
[349889520,1737479454295,-500.0,0.00020273,2]
[349889521,1737479454305,-1102.43,0.00020273,2]
[349889522,1737479454316,-670.27,0.00020273,2]
[349889523,1737479454325,-5078.69,0.00020273,2]
[349889524,1737479454334,-1584.35,0.00020273,2]
[349889525,1737479454343,-2472.99,0.00020273,2]
[349889526,1737479454352,-1076.06,0.00020273,2]
[349889527,1737479454362,-2100.44,0.00020273,2]
[349889528,1737479454373,-912.99,0.00020273,2]
[349889529,1737479454382,-1537.4,0.00020273,2]
[349889530,1737479454392,-1047.56,0.00020273,2]
[349889531,1737479454402,-794.25,0.00020273,2]
[349889532,1737479454411,-1032.19,0.00020273,2]
[349889533,1737479454421,-500.0,0.00020273,2]
[349889534,1737479454430,-2060.25,0.00020273,2]
[349889535,1737479454440,-768.01,0.00020273,2]
[349889536,1737479454449,-500.0,0.00020273,2]
[349889537,1737479454458,-500.0,0.00020273,2]
[349889538,1737479454467,-269.55,0.00020273,2]
[349889539,1737479454478,-500.0,0.00020273,2]
[349889540,1737479454488,-772.75,0.00020273,2]
[349889541,1737479454498,-1196.17,0.00020273,2]
[349889542,1737479454508,-1952.2,0.00020273,2]
[349889543,1737479454518,-500.0,0.00020273,2]
[349889544,1737479454528,-939.15,0.00020273,2]
[349889545,1737479454537,-1499.2,0.00020273,2]
[349889546,1737479454546,-639.05,0.00020273,2]
[349889547,1737479454555,-500.0,0.00020273,2]
[349889548,1737479454565,-1153.34,0.00020273,2]
[349889549,1737479454574,-500.0,0.00020273,2]
[349889550,1737479454583,-550.31,0.00020273,2]
[349889551,1737479454593,-500.0,0.00020273,2]
[349889552,1737479454602,-2090.6,0.00020273,2]
[349889553,1737479454612,-500.0,0.00020273,2]
[349889554,1737479454622,-500.0,0.00020273,2]
[349889555,1737479454631,-500.0,0.00020273,2]
[349889556,1737479454641,-1157.02,0.00020273,2]
[349889557,1737479454651,-703.86,0.00020273,2]
[349889558,1737479454661,-150.0,0.00020302,2]
[349889559,1737479454671,-439.12586914,0.00020314,2]
[349889560,1737479454681,-2522.94,0.00020326,2]
[349889561,1737479454691,-150.0,0.0002033,2]
[349889562,1737479454700,-1000.0,0.00020334,2]
[349889563,1737479454709,-150.0,0.00020342,2]
[349889564,1737479454720,-437.71,0.00020356,2]
[349889565,1737479454729,-437.71,0.00020356,2]
[349889566,1737479454739,-150.0,0.00020356,2]
[349889567,1737479454748,-437.71,0.00020356,2]
[349889568,1737479454758,-150.0,0.00020356,2]
[349889569,1737479454767,-150.0,0.00020356,2]
[349889570,1737479454777,-437.71,0.00020356,2]
[349889571,1737479454787,-437.71,0.00020356,2]
[349889572,1737479454796,-150.0,0.00020356,2]
[349889573,1737479454806,-437.71,0.00020356,2]
[349889574,1737479454815,-150.0,0.00020356,2]
[349889575,1737479454825,-150.0,0.00020356,2]
[349889576,1737479454835,-437.71,0.00020356,2]
[349889577,1737479454844,-381.56,0.00020356,2]
[349889578,1737479454854,-150.0,0.00020356,2]
[349889579,1737479454863,-437.71,0.00020356,2]
[349889580,1737479454873,-298.01,0.00020356,2]
[349889581,1737479454883,-300.0,0.00020356,2]
[349889582,1737479454892,-437.71,0.00020356,2]
[349889583,1737479454902,-150.0,0.00020356,2]
[349889584,1737479454912,-981.79,0.00020356,2]
[349889585,1737479454923,-437.71,0.00020356,2]
[349889586,1737479454932,-150.0,0.00020356,2]
[349889587,1737479454941,-437.71,0.00020356,2]
[349889588,1737479454950,-437.71,0.00020356,2]
[349889589,1737479454961,-150.0,0.00020356,2]
[349889590,1737479454972,-437.71,0.00020356,2]
[349889591,1737479454981,-233.96,0.00020356,2]
[349889592,1737479454991,-437.71,0.00020356,2]
[349889593,1737479455002,-437.71,0.00020356,2]
[349889594,1737479455011,-437.71,0.00020356,2]
[349889595,1737479455020,-150.0,0.0002036,2]
[349889596,1737479455030,-1000.0,0.00020364,2]
[349889597,1737479455039,-5000.0,0.00020376,2]
[349889598,1737479455048,-439.12586914,0.00020383,2]
[349889599,1737479455058,-150.0,0.00020386,2]
[349889600,1737479455067,-150.0,0.00020387,2]
[349889601,1737479455076,-150.0,0.00020392,2]
[349889602,1737479455086,-1067.24,0.00020414,2]
[349889603,1737479455095,-160.672,0.0002042,2]
[349889604,1737479455104,-150.0,0.00020422,2]
[349889605,1737479455114,-150.0,0.00020424,2]
[349889606,1737479455123,-4975.26992758,0.00020425,2]
[349889607,1737479455132,-202.5731178,0.0002043,2]
[349889608,1737479455141,-500.0,0.00020431,2]
[349889609,1737479455151,-500.0,0.00020431,2]
[349889610,1737479455160,-500.0,0.00020431,2]
[349889611,1737479455171,-500.0,0.00020431,2]
[349889612,1737479455180,-500.0,0.00020431,2]
[349889613,1737479455190,-505.86,0.00020431,2]
[349889614,1737479455199,-500.0,0.00020431,2]
[349889615,1737479455209,-500.0,0.00020431,2]
[349889616,1737479455219,-500.0,0.00020431,2]
[349889617,1737479455229,-500.0,0.00020431,2]
[349889618,1737479455239,-500.0,0.00020431,2]
[349889619,1737479455248,-500.0,0.00020431,2]
[349889620,1737479455257,-500.0,0.00020431,2]
[349889621,1737479455266,-565.93465827,0.00020431,2]
[349889622,1737479455276,-500.0,0.00020431,2]
[349889623,1737479455285,-500.0,0.00020431,2]
[349889624,1737479455296,-500.0,0.00020431,2]
[349889625,1737479455305,-500.0,0.00020431,2]
[349889626,1737479455315,-500.0,0.00020431,2]
[349889627,1737479455324,-500.0,0.00020431,2]
[349889628,1737479455337,-500.0,0.00020431,2]
[349889629,1737479455351,-500.0,0.00020431,2]
[349889630,1737479455363,-500.0,0.00020431,2]
[349889631,1737479455377,-571.90514064,0.00020431,2]
[349889632,1737479455390,-500.0,0.00020431,2]
[349889633,1737479455401,-578.2,0.00020431,2]
[349889634,1737479455411,-500.0,0.00020431,2]
[349889635,1737479455420,-553.25,0.00020431,2]
[349889636,1737479455429,-500.0,0.00020431,2]
[349889637,1737479455438,-500.0,0.00020431,2]
[349889638,1737479455448,-500.0,0.00020431,2]
[349889639,1737479455461,-500.0,0.00020431,2]
[349889640,1737479455473,-500.0,0.00020431,2]
[349889641,1737479455486,-518.27,0.00020431,2]
[349889642,1737479455498,-500.0,0.00020431,2]
[349889643,1737479455514,-1420.64,0.00020431,2]
[349889644,1737479455525,-184.79115546,0.00020431,2]
[349889645,1737479455535,-500.0,0.00020431,2]
[349889646,1737479455545,-500.0,0.00020431,2]
[349889647,1737479455559,-500.0,0.00020431,2]
[349889648,1737479455570,-1040.41,0.00020431,2]
[349889649,1737479455584,-500.0,0.00020431,2]
[349889650,1737479455594,-1034.85,0.00020431,2]
[349889651,1737479455603,-500.0,0.00020431,2]
[349889652,1737479455615,-1232.93,0.00020431,2]
[349889653,1737479455626,-2266.68,0.00020431,2]
[349889654,1737479455636,-732.29,0.00020431,2]
[349889655,1737479455650,-500.0,0.00020431,2]
[349889656,1737479455661,-1145.55,0.00020431,2]
[349889657,1737479455673,-1448.67,0.00020431,2]
[349889658,1737479455683,-874.76,0.00020431,2]
[349889659,1737479455696,-500.0,0.00020431,2]
[349889660,1737479455706,-500.0,0.00020431,2]
[349889661,1737479455715,-2577.28,0.00020431,2]
[349889662,1737479455729,-500.0,0.00020431,2]
[349889663,1737479455740,-1088.17,0.00020431,2]
[349889664,1737479455752,-1796.36,0.00020431,2]
[349889665,1737479455762,-640.73,0.00020431,2]
[349889666,1737479455771,-4318.56,0.00020431,2]
[349889667,1737479455782,-735.56,0.00020431,2]
[349889668,1737479455792,-1359.04,0.00020431,2]
[349889669,1737479455801,-710.9,0.00020431,2]
[349889670,1737479455811,-500.0,0.00020431,2]
[349889671,1737479455820,-1294.45,0.00020431,2]
[349889672,1737479455830,-4644.51,0.00020431,2]
[349889673,1737479455839,-851.33,0.00020431,2]
[349889674,1737479455848,-500.0,0.00020431,2]
[349889675,1737479455858,-561.61,0.00020431,2]
[349889676,1737479455867,-1491.18,0.00020431,2]
[349889677,1737479455876,-500.0,0.00020431,2]
[349889678,1737479455886,-1158.68,0.00020431,2]
[349889679,1737479455895,-168.27944597,0.00020447,2]
[349889680,1737479455905,-935.71390749,0.00020461,2]
[349889681,1737479455915,-500.57470895,0.00020473,2]
[349889682,1737479455927,-500.0,0.00020473,2]
[349889683,1737479455937,-500.0,0.00020473,2]
[349889684,1737479455947,-773.11,0.00020473,2]
[349889685,1737479455957,-773.11,0.00020473,2]
[349889686,1737479455967,-773.11,0.00020473,2]
[349889687,1737479455977,-773.11,0.00020473,2]
[349889688,1737479455986,-772.68,0.00020473,2]
[349889689,1737479455995,-773.11,0.00020473,2]
[349889690,1737479456007,-773.11,0.00020473,2]
[349889691,1737479456017,-773.11,0.00020473,2]
[349889692,1737479456027,-773.11,0.00020473,2]
[349889693,1737479456036,-1387.26,0.00020473,2]
[349889694,1737479456046,-150.0,0.00020484,2]
[349889695,1737479456055,-152.0,0.00020485,3]
[349889696,1737479456064,-150.0,0.00020486,2]
[349889697,1737479456074,-150.0,0.00020488,2]
[349889698,1737479456222,-165.23,0.00020501,2]
[349889699,1737479456232,-150.0,0.00020503,2]
[349889700,1737479456242,-150.0,0.00020515,2]
[349889701,1737479456251,-1067.24,0.00020546,2]
[349889702,1737479456260,-1067.24,0.00020546,2]
[349889703,1737479456270,-1067.24,0.00020546,2]
[349889704,1737479456280,-1067.24,0.00020546,2]
[349889705,1737479456289,-999.0,0.00020546,2]
[349889706,1737479456299,-525.7,0.00020547,2]
[349889707,1737479456309,-500.0,0.00020547,2]
[349889708,1737479456318,-500.0,0.00020547,2]
[349889709,1737479456327,-500.0,0.00020547,2]
[349889710,1737479456337,-500.0,0.00020547,2]
[349889711,1737479456347,-500.0,0.00020547,2]
[349889712,1737479456356,-776.49,0.00020547,2]
[349889713,1737479456366,-500.0,0.00020547,2]
[349889714,1737479456375,-528.45,0.00020547,2]
[349889715,1737479456385,-500.0,0.00020547,2]
[349889716,1737479456394,-572.08,0.00020547,2]
[349889717,1737479456403,-221.63,0.00020547,2]
[349889718,1737479456413,-647.34,0.00020547,2]
[349889719,1737479456423,-500.0,0.00020547,2]
[349889720,1737479456433,-506.89,0.00020547,2]
[349889721,1737479456442,-500.0,0.00020547,2]
[349889722,1737479456451,-500.0,0.00020547,2]
[349889723,1737479456461,-441.39807894,0.00020547,2]
[349889724,1737479456470,-500.0,0.00020547,2]
[349889725,1737479456480,-156.44,0.00020547,2]
[349889726,1737479456490,-500.0,0.00020547,2]
[349889727,1737479456499,-500.0,0.00020547,2]
[349889728,1737479456509,-500.0,0.00020547,2]
[349889729,1737479456519,-500.0,0.00020547,2]
[349889730,1737479456528,-500.0,0.00020547,2]
[349889731,1737479456538,-500.0,0.00020547,2]
[349889732,1737479456547,-500.0,0.00020547,2]
[349889733,1737479456556,-500.0,0.00020547,2]
[349889734,1737479456565,-509.32,0.00020547,2]
[349889735,1737479456574,-515.62,0.00020547,2]
[349889736,1737479456584,-500.0,0.00020547,2]
[349889737,1737479456594,-448.62,0.00020547,2]
[349889738,1737479456604,-500.0,0.00020547,2]
[349889739,1737479456614,-599.41,0.00020547,2]
[349889740,1737479456624,-500.0,0.00020547,2]
[349889741,1737479456633,-500.0,0.00020547,2]
[349889742,1737479456643,-500.0,0.00020547,2]
[349889743,1737479456654,-168.57,0.00020547,2]
[349889744,1737479456664,-500.0,0.00020547,2]
[349889745,1737479456673,-500.0,0.00020547,2]
[349889746,1737479456683,-500.0,0.00020547,2]
[349889747,1737479456693,-500.0,0.00020547,2]
[349889748,1737479456703,-500.0,0.00020547,2]
[349889749,1737479456713,-500.0,0.00020547,2]
[349889750,1737479456724,-500.0,0.00020547,2]
[349889751,1737479456735,-810.5,0.00020547,2]
[349889752,1737479456745,-500.0,0.00020547,2]
[349889753,1737479456755,-4560.48,0.00020547,2]
[349889754,1737479456766,-500.0,0.00020547,2]
[349889755,1737479456777,-2352.03,0.00020547,2]
[349889756,1737479456790,-500.0,0.00020547,2]
[349889757,1737479456801,-500.0,0.00020547,2]
[349889758,1737479456812,-500.0,0.00020547,2]
[349889759,1737479456822,-701.77,0.00020547,2]
[349889760,1737479456831,-500.0,0.00020547,2]
[349889761,1737479456842,-698.650359,0.00020547,2]
[349889762,1737479456851,-500.0,0.00020547,2]
[349889763,1737479456861,-1124.94,0.00020547,2]
[349889764,1737479456871,-500.0,0.00020547,2]
[349889765,1737479456881,-531.34,0.00020547,2]
[349889766,1737479456890,-749.14,0.00020547,2]
[349889767,1737479456899,-500.0,0.00020547,2]
[349889768,1737479456909,-1003.53,0.00020547,2]
[349889769,1737479456920,-563.702205,0.00020547,2]
[349889770,1737479456929,-629.26,0.00020547,2]
[349889771,1737479456939,-590.33,0.00020547,2]
[349889772,1737479456947,-500.0,0.00020547,2]
[349889773,1737479456957,-718.45,0.00020547,2]
[349889774,1737479456966,-1881.9,0.00020547,2]
[349889775,1737479456977,-754.04,0.00020547,2]
[349889776,1737479456987,-777.47,0.00020547,2]
[349889777,1737479456998,-739.46,0.00020547,2]
[349889778,1737479457007,-500.0,0.00020547,2]
[349889779,1737479457016,-925.58,0.00020547,2]
[349889780,1737479457026,-1142.64,0.00020547,2]
[349889781,1737479457035,-2002.12,0.00020547,2]
[349889782,1737479457044,-709.95,0.00020547,2]
[349889783,1737479457053,-941.04,0.00020547,2]
[349889784,1737479457063,-2517.4,0.00020547,2]
[349889785,1737479457073,-1413.99,0.00020547,2]
[349889786,1737479457082,-552.17,0.00020547,2]
[349889787,1737479457092,-500.0,0.00020547,2]
[349889788,1737479457102,-737.99,0.00020547,2]
[349889789,1737479457111,-3214.68,0.00020547,2]
[349889790,1737479457121,-1146.7,0.00020547,2]
[349889791,1737479457131,-626.45,0.00020547,2]
[349889792,1737479457141,-1079.87,0.00020547,2]
[349889793,1737479457151,-2035.94,0.00020547,2]
[349889794,1737479457161,-657.06,0.00020547,2]
[349889795,1737479457171,-808.85,0.00020547,2]
[349889796,1737479457180,-916.07,0.00020547,2]
[349889797,1737479457189,-721.27,0.00020547,2]
[349889798,1737479457199,-1430.53,0.00020547,2]
[349889799,1737479457209,-1786.33,0.00020547,2]
[349889800,1737479457220,-631.29,0.00020547,2]
[349889801,1737479457231,-2195.22,0.00020547,2]
[349889802,1737479457241,-1106.1,0.00020547,2]
[349889803,1737479457251,-3164.59,0.00020547,2]
[349889804,1737479457260,-500.0,0.00020547,2]
[349889805,1737479457270,-2877.9,0.00020547,2]
[349889806,1737479457279,-574.34,0.00020547,2]
[349889807,1737479457288,-1257.13,0.00020547,2]
[349889808,1737479457299,-2008.47,0.00020547,2]
[349889809,1737479457309,-1016.06,0.00020547,2]
[349889810,1737479457319,-2998.19,0.00020547,2]
[349889811,1737479457329,-1129.37,0.00020547,2]
[349889812,1737479457338,-1537.18,0.00020547,2]
[349889813,1737479457348,-794.84,0.00020547,2]
[349889814,1737479457357,-1711.15,0.00020547,2]
[349889815,1737479457367,-1550.42,0.00020547,2]
[349889816,1737479457377,-1036.46,0.00020547,2]
[349889817,1737479457387,-573.63,0.00020547,2]
[349889818,1737479457397,-500.0,0.00020547,2]
[349889819,1737479457413,-1712.5,0.00020547,2]
[349889820,1737479457428,-1076.93,0.00020547,2]
[349889821,1737479457441,-398.33836089,0.00020547,2]
[349889822,1737479457457,-1102.43,0.00020547,2]
[349889823,1737479457472,-670.27,0.00020547,2]
[349889824,1737479457488,-5078.69,0.00020547,2]
[349889825,1737479457502,-1584.35,0.00020547,2]
[349889826,1737479457515,-2472.99,0.00020547,2]
[349889827,1737479457530,-1076.06,0.00020547,2]
[349889828,1737479457547,-2100.44,0.00020547,2]
[349889829,1737479457561,-912.99,0.00020547,2]
[349889830,1737479457576,-1537.4,0.00020547,2]
[349889831,1737479457591,-1047.56,0.00020547,2]
[349889832,1737479457606,-794.25,0.00020547,2]
[349889833,1737479457621,-1032.19,0.00020547,2]
[349889834,1737479457635,-449.83925505,0.00020547,2]
[349889835,1737479457648,-2060.25,0.00020547,2]
[349889836,1737479457663,-768.01,0.00020547,2]
[349889837,1737479457678,-500.0,0.00020547,2]
[349889838,1737479457692,-500.0,0.00020547,2]
[349889839,1737479457703,-500.0,0.00020547,2]
[349889840,1737479457716,-772.75,0.00020547,2]
[349889841,1737479457733,-1196.17,0.00020547,2]
[349889842,1737479457744,-1952.2,0.00020547,2]
[349889843,1737479457756,-500.0,0.00020547,2]
[349889844,1737479457772,-939.15,0.00020547,2]
[349889845,1737479457785,-1499.2,0.00020547,2]
[349889846,1737479457797,-639.05,0.00020547,2]
[349889847,1737479457810,-1153.34,0.00020547,2]
[349889848,1737479457821,-500.0,0.00020547,2]
[349889849,1737479457835,-550.31,0.00020547,2]
[349889850,1737479457847,-500.0,0.00020547,2]
[349889851,1737479457860,-2090.6,0.00020547,2]
[349889852,1737479457873,-500.0,0.00020547,2]
[349889853,1737479457885,-500.0,0.00020547,2]
[349889854,1737479457898,-500.0,0.00020547,2]
[349889855,1737479457911,-1157.02,0.00020547,2]
[349889856,1737479457924,-703.86,0.00020547,2]
[349889857,1737479457937,-177.55,0.00020548,2]
[349889858,1737479457950,-150.0,0.00020557,2]
[349889859,1737479457962,-377.17375786,0.00020573,2]
[349889860,1737479457976,-500.0,0.00020573,2]
[349889861,1737479457988,-1000.0,0.00020576,2]
[349889862,1737479458002,-25000.0,0.00020582,2]
[349889863,1737479458015,-150.0,0.00020584,2]
[349889864,1737479458027,-150.0,0.0002059,2]
[349889865,1737479458040,-2477.76,0.000206,2]
[349889866,1737479458051,-150.0,0.00020607,2]
[349889867,1737479458064,-437.71,0.00020614,2]
[349889868,1737479458076,-150.0,0.00020615,2]
[349889869,1737479458088,-1000.0,0.0002062,2]
[349889870,1737479458100,-150.0,0.00020621,2]
[349889871,1737479458112,-150.0,0.00020621,2]
[349889872,1737479458124,-1000.0,0.00020638,2]
[349889873,1737479458136,-150.0,0.00020642,2]
[349889874,1737479458148,-462.35,0.00020652,2]
[349889875,1737479458160,-5000.0,0.00020656,2]
[349889876,1737479458172,-4975.26992758,0.00020663,2]
[349889877,1737479458184,-171.72442,0.00020688,2]
[349889878,1737479458196,-500.0,0.00020705,2]
[349889879,1737479458208,-500.0,0.00020705,2]
[349889880,1737479458221,-500.0,0.00020705,2]
[349889881,1737479458236,-500.0,0.00020705,2]
[349889882,1737479458249,-500.0,0.00020705,2]
[349889883,1737479458261,-505.86,0.00020705,2]
[349889884,1737479458274,-500.0,0.00020705,2]
[349889885,1737479458287,-500.0,0.00020705,2]
[349889886,1737479458301,-448.04409561,0.00020705,2]
[349889887,1737479458313,-500.0,0.00020705,2]
[349889888,1737479458326,-500.0,0.00020705,2]
[349889889,1737479458338,-500.0,0.00020705,2]
[349889890,1737479458351,-500.0,0.00020705,2]
[349889891,1737479458364,-500.0,0.00020705,2]
[349889892,1737479458377,-500.0,0.00020705,2]
[349889893,1737479458390,-500.0,0.00020705,2]
[349889894,1737479458403,-500.0,0.00020705,2]
[349889895,1737479458416,-500.0,0.00020705,2]
[349889896,1737479458428,-500.0,0.00020705,2]
[349889897,1737479458441,-500.0,0.00020705,2]
[349889898,1737479458454,-371.70368211,0.00020705,2]
[349889899,1737479458467,-578.2,0.00020705,2]
[349889900,1737479458482,-500.0,0.00020705,2]
[349889901,1737479458501,-553.25,0.00020705,2]
[349889902,1737479458514,-500.0,0.00020705,2]
[349889903,1737479458526,-500.0,0.00020705,2]
[349889904,1737479458539,-155.36434621,0.00020705,2]
[349889905,1737479458551,-500.0,0.00020705,2]
[349889906,1737479458564,-500.0,0.00020705,2]
[349889907,1737479458576,-518.27,0.00020705,2]
[349889908,1737479458589,-500.0,0.00020705,2]
[349889909,1737479458601,-1420.64,0.00020705,2]
[349889910,1737479458613,-500.0,0.00020705,2]
[349889911,1737479458626,-500.0,0.00020705,2]
[349889912,1737479458637,-328.42730129,0.00020705,2]
[349889913,1737479458650,-1040.41,0.00020705,2]
[349889914,1737479458662,-500.0,0.00020705,2]
[349889915,1737479458674,-1034.85,0.00020705,2]
[349889916,1737479458687,-500.0,0.00020705,2]
[349889917,1737479458700,-1232.93,0.00020705,2]
[349889918,1737479458712,-2266.68,0.00020705,2]
[349889919,1737479458726,-732.29,0.00020705,2]
[349889920,1737479458738,-500.0,0.00020705,2]
[349889921,1737479458751,-1145.55,0.00020705,2]
[349889922,1737479458763,-1448.67,0.00020705,2]
[349889923,1737479458776,-874.76,0.00020705,2]